bitfinex-derivatives/quotes_ETHF0:USTF0_20250101
["timestamp","ask_amount","ask_price","bid_price","bid_amount"]
[1735700461116,0.4358,3364.4,3363.6,3.2078]
[1735700461309,0.4358,3364.4,3363.7,0.4448]
[1735700461609,0.29795,3363.9,3363.7,0.4448]
[1735700461814,0.29796,3363.8,3363.7,0.4448]
[1735700462610,2.24623173,3364.3,3363.7,0.74276]
[1735700462909,0.29793,3364.1,3363.7,0.74276]
[1735700463709,0.29794,3364.0,3363.7,5.39347683]
[1735700463911,0.29794,3364.0,3363.8,0.9136]
[1735700465113,0.29795,3363.9,3363.8,0.9136]
[1735700466119,0.29795,3363.9,3363.8,0.461]
[1735700475623,0.29796,3363.7,3363.6,3.2078]
[1735700476421,0.29796,3363.7,3363.6,3.50577]
[1735700476622,0.29796,3363.8,3363.6,3.50577]
[1735700477327,0.29796,3363.7,3363.6,3.2078]
[1735700484463,5.45403173,3363.7,3363.4,4.65071683]
[1735700484631,5.45403173,3363.7,3363.2,4.65071683]
[1735700484632,0.298,3363.3,3363.2,4.65071683]
[1735700485745,0.298,3363.4,3363.1,0.29802]
[1735700486043,0.298,3363.3,3363.0,4.94873683]
[1735700486536,0.4566,3363.2,3363.1,0.29802]
[1735700486734,0.4566,3363.2,3363.0,4.65071683]
[1735700486924,0.4566,3363.2,3363.0,4.94873683]
[1735700487132,0.75461,3363.2,3363.0,4.94874683]
[1735700488038,0.4566,3363.2,3363.0,4.94874683]
[1735700488531,0.4566,3363.2,3363.0,4.65071683]
[1735700488836,1.20361,3363.2,3363.0,4.65071683]
[1735700489035,0.9056,3363.2,3363.0,4.65071683]
[1735700489235,0.75412,3363.1,3363.0,4.65071683]
[1735700490532,0.75412,3363.1,3362.8,3.93424]
[1735700490733,0.29803,3363.0,3362.8,3.93424]
[1735700490932,0.9056,3363.2,3363.0,0.29802]
[1735700491136,0.9056,3363.2,3362.8,3.6362]
[1735700491334,0.29804,3362.9,3362.8,3.6362]
[1735700491537,0.29803,3363.0,3362.8,3.6362]
[1735700491734,0.29803,3363.0,3362.8,3.93424]
[1735700492734,0.29803,3363.0,3362.8,3.6362]
[1735700492939,0.29804,3362.9,3362.8,3.6362]
[1735700494841,0.29804,3362.9,3362.8,0.4284]
[1735700495642,0.29806,3362.7,3362.5,0.73417]
[1735700495845,0.9056,3363.2,3362.5,0.881]
[1735700496041,0.29806,3362.6,3362.5,0.881]
[1735700496538,0.29806,3362.6,3362.5,0.4449]
[1735700497237,0.29807,3362.5,3362.4,3.2078]
[1735700497545,1.61737,3362.5,3362.4,3.2078]
[1735700498342,1.61737,3362.5,3362.1,4.65071683]
[1735700498343,3.56553173,3362.5,3362.3,4.65071683]
[1735700498641,0.29808,3362.4,3362.3,4.65071683]
[1735700499742,3.56553173,3362.5,3361.9,3.2078]
[1735700499935,0.29812,3362.0,3361.9,3.2078]
[1735700500534,0.72402,3362.0,3361.9,3.2078]
[1735700501145,0.8881,3362.5,3361.9,3.2078]
[1735700501338,0.72397,3362.6,3362.2,0.29809]
[1735700501545,0.76105,3362.8,3362.5,0.29807]
[1735700501840,0.29806,3362.7,3362.4,0.29808]
[1735700503239,0.29806,3362.7,3362.3,8.30401683]
[1735700503440,0.463,3362.8,3362.3,8.30401683]
[1735700503840,0.29807,3362.5,3362.3,8.30401683]
[1735700504234,0.29807,3362.5,3362.3,3.6533]
[1735700504641,0.463,3362.8,3362.3,3.6533]
[1735700504943,0.29808,3362.4,3362.3,3.6533]
[1735700506444,2.24623173,3362.5,3362.0,0.4192]
[1735700506741,0.29812,3362.0,3361.9,3.6364]
[1735700508243,0.29811,3362.1,3361.9,3.6364]
[1735700509047,0.29811,3362.1,3361.9,3.93452]
[1735700509249,1.6298,3362.2,3361.9,3.6364]
[1735700509445,0.29812,3362.0,3361.9,3.6364]
[1735700513248,1.6298,3362.2,3361.9,3.6364]
[1735700513652,0.29812,3362.0,3361.9,3.6364]
[1735700513953,0.29814,3361.7,3361.6,0.4517]
[1735700514142,0.29814,3361.7,3361.6,0.4612]
[1735700515048,0.29812,3361.9,3361.6,0.75935]
[1735700515245,1.179,3362.0,3361.6,0.75935]
[1735700515246,0.29814,3361.8,3361.6,0.75935]
[1735700515453,0.29814,3361.7,3361.6,0.75935]
[1735700515652,0.29813,3361.9,3361.7,0.29814]
[1735700516348,0.29812,3361.9,3361.7,0.29814]
[1735700517655,0.29813,3361.8,3361.7,0.29814]
[1735700518552,0.29813,3361.8,3361.6,0.4612]
[1735700518750,0.29813,3361.8,3361.6,0.75935]
[1735700520650,0.29814,3361.7,3361.6,0.75935]
[1735700520844,0.29814,3361.7,3361.6,0.4612]
[1735700521851,0.29814,3361.7,3361.6,0.75935]
[1735700522054,0.29814,3361.7,3361.6,0.4612]
[1735700524056,0.29814,3361.7,3361.6,0.75935]
[1735700525056,0.29814,3361.7,3361.6,0.4612]
[1735700525260,0.29814,3361.7,3361.6,0.75935]
[1735700525955,0.29814,3361.7,3361.6,0.4612]
[1735700527159,0.29814,3361.7,3361.6,0.75935]
[1735700527373,0.29814,3361.7,3361.6,0.4612]
[1735700528264,0.4518,3362.2,3361.6,0.4612]
[1735700528558,2.24623173,3362.5,3361.6,0.4612]
[1735700528559,7.09723173,3363.3,3362.0,2.24623173]
[1735700528760,7.09723173,3363.3,3362.7,3.2078]
[1735700528761,3.54133173,3363.3,3362.7,3.2078]
[1735700528946,3.54133173,3363.3,3362.1,2.07287]
[1735700528947,0.435,3363.3,3363.2,3.50581]
[1735700529152,2.24623173,3363.6,3363.2,3.2078]
[1735700529352,0.298,3363.4,3363.2,3.2078]
[1735700530156,0.298,3363.3,3363.2,3.2078]
[1735700532758,2.54423173,3363.3,3363.2,3.2078]
[1735700533758,0.29805,3362.7,3362.6,4.65071683]
[1735700534556,2.24623173,3362.9,3362.5,3.2078]
[1735700534757,0.72506,3362.6,3362.5,3.2078]
[1735700535856,0.427,3362.6,3362.2,0.4581]
[1735700536057,0.29809,3362.3,3362.2,0.4581]
[1735700536762,0.29809,3362.4,3362.2,0.4581]
[1735700537157,0.427,3362.6,3362.2,0.4581]
[1735700537461,0.29809,3362.3,3362.2,0.4581]
[1735700537966,0.29809,3362.3,3362.2,5.10881683]
[1735700539965,0.29808,3362.4,3362.2,5.40690683]
[1735700541158,0.29808,3362.4,3362.3,4.65071683]
[1735700542969,0.29808,3362.4,3362.2,0.75619]
[1735700544766,0.4414,3363.0,3362.2,0.4581]
[1735700544967,0.8842,3363.0,3362.6,3.2078]
[1735700545168,0.8842,3363.0,3362.7,0.436]
[1735700545369,0.29804,3362.8,3362.7,0.436]
[1735700545563,0.8842,3363.0,3362.6,3.2078]
[1735700545772,0.29809,3362.4,3362.2,0.436]
[1735700545976,0.4582,3362.3,3362.2,5.08671683]
[1735700546466,1.20479,3362.3,3362.2,5.08671683]
[1735700547080,0.9067,3362.3,3362.1,3.2078]
[1735700547267,0.2981,3362.2,3362.1,3.2078]
[1735700551173,0.2981,3362.2,3362.1,7.85851683]
[1735700551992,2.54433173,3362.2,3362.1,4.65071683]
[1735700552187,0.29811,3362.1,3362.0,4.65071683]
[1735700552888,0.29811,3362.1,3362.0,3.95221683]
[1735700553388,0.29814,3361.7,3361.6,3.95221683]
[1735700553985,0.73204,3361.7,3361.6,3.95221683]
[1735700554588,0.73204,3361.7,3361.2,9.74697821]
[1735700554589,0.29817,3361.4,3361.3,6.99545866]
[1735700555492,0.29817,3361.4,3361.3,13.27378144]
[1735700556779,0.29817,3361.4,3361.3,6.99545866]
[1735700556988,0.29818,3361.3,3361.2,6.99545866]
[1735700557882,0.29818,3361.3,3361.1,0.4547]
[1735700557883,0.29818,3361.3,3361.1,0.75289]
[1735700558789,0.29818,3361.3,3361.1,7.74834866]
[1735700559290,0.29819,3361.2,3361.1,7.74834866]
[1735700559789,0.29819,3361.2,3361.1,0.75289]
[1735700560290,0.29819,3361.2,3361.1,0.4547]
[1735700565092,2.24623173,3361.5,3361.0,3.2078]
[1735700565288,0.7471,3361.1,3361.0,3.2078]
[1735700565785,0.4489,3361.1,3360.8,0.4203]
[1735700565985,0.29821,3360.9,3360.8,0.4203]
[1735700567086,0.4287,3361.0,3360.8,0.4203]
[1735700567288,0.29821,3360.9,3360.8,0.4203]
[1735700568094,0.4489,3361.1,3360.8,0.4203]
[1735700568399,0.2982,3361.1,3360.9,3.50601]
[1735700568589,0.4505,3361.3,3360.9,3.2078]
[1735700568893,0.29819,3361.2,3360.9,3.50601]
[1735700569287,0.29819,3361.2,3360.5,6.99545866]
[1735700569288,0.29824,3360.6,3360.5,6.99545866]
[1735700569992,0.29825,3360.5,3360.4,0.4633]
[1735700570199,0.29824,3360.6,3360.4,3.96936]
[1735700570494,0.73572,3360.9,3360.6,0.29824]
[1735700570689,0.73572,3360.9,3360.8,3.2078]
[1735700571217,0.29822,3360.9,3360.8,3.2078]
[1735700571406,0.29822,3360.9,3360.8,3.6481]
[1735700572288,0.29822,3360.9,3360.8,0.4403]
[1735700574294,0.4375,3361.1,3360.8,0.4403]
[1735700574493,0.29822,3360.9,3360.8,0.4403]
[1735700576095,0.29822,3360.9,3360.8,3.6481]
[1735700584697,0.2982,3361.1,3360.8,3.6481]
[1735700584899,3.2078,3362.4,3360.9,0.4414]
[1735700585098,2.24623173,3362.5,3361.6,3.2078]
[1735700585314,0.29812,3362.1,3361.9,0.29813]
[1735700585601,0.29812,3362.1,3361.8,0.29813]
[1735700585800,0.29808,3362.4,3361.7,1.2816]
[1735700586004,0.29813,3361.9,3361.7,1.2816]
[1735700586500,0.29814,3361.8,3361.7,1.2816]
[1735700586698,0.29814,3361.8,3361.7,0.8609]
[1735700593414,0.29814,3361.8,3361.7,1.15905]
[1735700593613,0.29814,3361.8,3361.7,7.42178148]
[1735700594112,0.29813,3361.9,3361.7,7.12363148]
[1735700594404,2.24623173,3362.2,3361.7,7.12363148]
[1735700594612,0.8878,3362.6,3361.7,7.12363148]
[1735700594613,2.5212,3362.6,3362.0,3.2078]
[1735700594806,2.5212,3362.6,3362.1,0.29811]
[1735700594807,0.29808,3362.5,3362.1,0.29811]
[1735700594999,0.29811,3362.2,3362.0,3.50592]
[1735700596114,0.29809,3362.3,3362.0,3.2078]
[1735700596315,0.2981,3362.3,3362.2,0.2981]
[1735700597111,0.2981,3362.3,3362.0,3.2078]
[1735700597309,0.4544,3362.6,3362.0,3.2078]
[1735700597511,0.2981,3362.3,3362.2,0.2981]
[1735700597712,0.29811,3362.2,3362.1,0.29811]
[1735700598015,0.29811,3362.2,3362.0,3.2078]
[1735700598016,0.29811,3362.1,3362.0,3.50592]
[1735700599501,0.29811,3362.1,3362.0,3.2078]
[1735700601709,0.75881,3362.1,3362.0,3.2078]
[1735700603412,0.4607,3362.1,3361.7,0.4414]
[1735700603615,0.29814,3361.8,3361.7,0.4414]
[1735700604316,0.29816,3361.6,3361.5,3.2078]
[1735700604616,0.4607,3362.1,3361.5,3.6535]
[1735700604812,0.4607,3362.1,3361.5,3.95166]
[1735700605013,0.4607,3362.1,3361.6,0.29816]
[1735700605014,0.29814,3361.8,3361.6,0.29816]
[1735700605211,0.29814,3361.8,3361.7,0.29815]
[1735700606513,0.29815,3361.7,3361.5,3.6535]
[1735700606720,0.29815,3361.7,3361.6,0.29815]
[1735700612621,0.29814,3361.8,3361.7,0.29814]
[1735700613422,0.4607,3362.1,3361.5,3.6535]
[1735700613614,0.29816,3361.6,3361.5,3.95166]
[1735700613815,0.29816,3361.6,3361.5,3.6535]
[1735700616018,0.29813,3361.9,3361.8,0.29813]
[1735700617924,0.29814,3361.8,3361.7,0.75474]
[1735700619221,1.178,3362.0,3361.8,0.29813]
[1735700619222,0.29813,3361.9,3361.8,0.29813]
[1735700621123,0.29813,3362.0,3361.9,0.29813]
[1735700621323,0.29813,3362.0,3361.9,3.50593]
[1735700622125,0.9081,3362.3,3361.9,3.2078]
[1735700622321,0.4211,3362.5,3362.4,0.29809]
[1735700622532,0.29807,3362.6,3362.5,0.4215]
[1735700623419,0.4211,3362.7,3361.9,10.18000109]
[1735700623617,0.29809,3362.3,3362.2,0.2981]
[1735700625122,0.29809,3362.3,3362.2,6.56502199]
[1735700625526,0.45,3362.6,3362.3,0.29809]
[1735700625728,0.29809,3362.4,3362.3,3.50589]
[1735700626126,0.29809,3362.4,3362.3,10.49491548]
[1735700627325,0.29809,3362.4,3362.3,16.76156577]
[1735700628039,0.4211,3362.7,3362.3,16.46347577]
[1735700628328,0.4211,3362.7,3362.4,0.29808]
[1735700628329,0.29808,3362.5,3362.4,0.29808]
[1735700629230,0.4211,3362.7,3362.3,16.46347577]
[1735700629427,0.29809,3362.4,3362.3,3.2078]
[1735700629628,2.66733173,3362.7,3362.2,9.29626812]
[1735700629828,0.74299,3362.3,3362.2,9.29626812]
[1735700630932,0.2981,3362.2,3362.1,6.99411927]
[1735700631128,1.2165,3362.2,3362.1,6.99411927]
[1735700631826,1.2165,3362.2,3362.1,13.26871475]
[1735700633026,1.2165,3362.2,3362.1,6.27459548]
[1735700633523,1.2165,3362.2,3362.1,7.02960548]
[1735700633524,0.2981,3362.2,3362.1,7.02960548]
[1735700634224,0.4363,3362.5,3362.1,7.02960548]
[1735700634528,0.4363,3362.5,3362.1,16.3258736]
[1735700634923,0.2981,3362.2,3362.1,16.3258736]
[1735700636729,0.29809,3362.4,3362.3,0.29809]
[1735700637631,0.29809,3362.4,3362.3,16.77733421]
[1735700639628,0.29809,3362.4,3362.3,16.47924421]
[1735700639827,0.29809,3362.4,3362.3,3.2078]
[1735700648133,1.6311,3362.6,3362.3,3.2078]
[1735700648334,1.47607,3362.6,3362.4,0.75148]
[1735700648731,1.47607,3362.6,3362.5,0.454]
[1735700648935,0.29809,3362.4,3362.3,10.20464873]
[1735700649870,0.29809,3362.4,3362.3,16.46238328]
[1735700650637,0.29809,3362.4,3362.3,16.76047328]
[1735700650838,0.4399,3362.7,3362.3,17.18747328]
[1735700651037,0.29809,3362.4,3362.3,17.18747328]
[1735700651236,0.29806,3362.7,3362.3,16.88938328]
[1735700651437,0.29808,3362.6,3362.4,0.29808]
[1735700652233,0.29808,3362.5,3362.4,0.29808]
[1735700652432,0.29809,3362.4,3362.3,9.46553455]
[1735700652839,0.29809,3362.4,3362.3,3.2078]
[1735700653943,0.29809,3362.4,3362.3,16.46423205]
[1735700654838,0.29809,3362.4,3362.3,3.5059]
[1735700655240,0.29809,3362.4,3362.3,3.2078]
[1735700660059,0.29807,3362.7,3362.5,0.29808]
[1735700660248,0.29806,3362.9,3362.6,0.87]
[1735700660545,0.29806,3362.9,3362.8,3.2078]
[1735700661360,0.29806,3362.8,3362.7,0.4449]
[1735700662853,0.29806,3362.8,3362.7,15.9859416]
[1735700663250,0.29806,3362.8,3362.7,16.2840116]
[1735700663953,0.29806,3362.8,3362.7,15.9859416]
[1735700665264,3.13543173,3363.3,3362.7,15.9859416]
[1735700665460,3.13543173,3363.3,3362.8,3.2078]
[1735700665461,0.29802,3363.2,3362.8,3.2078]
[1735700665651,0.29805,3362.9,3362.8,3.2078]
[1735700666148,0.29805,3362.9,3362.8,3.50586]
[1735700666658,0.29805,3362.9,3362.8,9.45257348]
[1735700667954,0.29805,3362.9,3362.8,9.75063348]
[1735700670164,0.29805,3362.9,3362.8,3.50586]
[1735700670864,0.29805,3362.9,3362.8,3.2078]
[1735700672464,0.29805,3362.9,3362.8,3.50586]
[1735700675375,0.29805,3362.9,3362.8,3.2078]
[1735700677879,0.75035,3362.9,3362.8,3.2078]
[1735700678375,0.75035,3362.9,3362.8,9.45057648]
[1735700682284,0.75035,3362.9,3362.8,14.11429525]
[1735700683372,0.75035,3362.9,3362.8,9.45057648]
[1735700683776,0.29805,3362.9,3362.8,9.45057648]
[1735700683979,0.29805,3362.9,3362.8,10.21013648]
[1735700684780,0.29805,3362.9,3362.8,17.20423823]
[1735700685988,0.29805,3362.9,3362.8,3.96736]
[1735700686886,0.29805,3362.9,3362.8,3.6693]
[1735700688090,0.29805,3362.9,3362.8,0.4615]
[1735700688294,0.29807,3362.7,3362.6,0.4338]
[1735700688589,0.29809,3362.5,3362.4,7.87016949]
[1735700688803,1.36225461,3362.5,3362.4,7.87016949]
[1735700689180,1.36225461,3362.5,3362.4,3.2078]
[1735700689988,0.2981,3362.3,3362.2,0.4321]
[1735700690391,0.7581,3362.3,3362.2,0.4321]
[1735700692290,0.44559768,3362.9,3362.2,0.4321]
[1735700692486,0.44559768,3362.9,3362.8,4.57001461]
[1735700692487,0.29805,3362.9,3362.8,4.57001461]
[1735700693088,0.29805,3362.9,3362.8,3.2078]
[1735700693296,0.29805,3362.9,3362.8,9.45261812]
[1735700694090,0.29805,3362.9,3362.8,16.44919671]
[1735700694287,0.29805,3362.9,3362.8,13.24139671]
[1735700694288,1.36221461,3362.9,3362.8,13.24139671]
[1735700694488,0.94336738,3362.9,3362.8,13.24139671]
[1735700694924,0.29807,3362.7,3362.6,6.99657859]
[1735700695591,0.29807,3362.7,3362.6,7.42787859]
[1735700695996,0.29807,3362.7,3362.6,13.66161959]
[1735700696589,0.29807,3362.7,3362.6,13.95969959]
[1735700696991,0.29807,3362.7,3362.6,6.963121]
[1735700700398,0.4591,3362.8,3362.7,0.29807]
[1735700700600,0.29806,3362.9,3362.8,0.29805]
[1735700701698,0.29806,3362.9,3362.8,13.53075589]
[1735700704807,0.29804,3363.0,3362.9,0.29805]
[1735700705400,0.29805,3362.9,3362.8,13.23270589]
[1735700707198,0.8849,3363.1,3362.8,13.23270589]
[1735700707199,0.29805,3363.0,3362.9,0.29805]
[1735700707403,0.29805,3362.9,3362.8,13.53076589]
[1735700707606,0.29805,3362.9,3362.8,0.29806]
[1735700708504,0.8849,3363.1,3362.7,3.2078]
[1735700708505,0.29806,3362.8,3362.7,3.2078]
[1735700709302,4.3848,3362.9,3362.4,4.66952782]
[1735700709507,0.29809,3362.5,3362.4,4.66952782]
[1735700709708,0.2981,3362.3,3362.2,0.4413]
[1735700710400,1.2016,3362.6,3362.1,3.2078]
[1735700710707,0.73241,3362.2,3362.1,3.2078]
[1735700713207,0.29811,3362.2,3362.1,3.2078]
[1735700714713,3.6484,3362.5,3361.8,0.4527]
[1735700715014,0.29814,3361.9,3361.8,0.4527]
[1735700715200,1.2016,3362.6,3361.8,0.4527]
[1735700715201,8.17695939,3363.1,3362.6,0.29808]
[1735700715508,8.47499939,3363.1,3362.7,0.8901]
[1735700715708,8.17695939,3363.1,3362.7,0.8901]
[1735700716017,0.29806,3362.9,3362.7,1.18817]
[1735700716318,4.1293,3363.6,3362.9,7.29700489]
[1735700716515,0.4485,3363.5,3362.9,6.99896489]
[1735700716713,0.29804,3363.1,3362.9,7.29701489]
[1735700716906,0.29804,3363.0,3362.9,7.29701489]
[1735700717107,0.29804,3363.0,3362.9,6.99896489]
[1735700717914,0.29804,3363.0,3362.9,7.29701489]
[1735700718114,0.29804,3363.0,3362.9,13.53182051]
[1735700718319,0.29804,3363.0,3362.9,13.23377051]
[1735700720012,0.29804,3363.0,3362.9,4.66713286]
[1735700721113,2.81524805,3363.5,3362.9,6.99896489]
[1735700721312,0.29804,3363.0,3362.9,6.99896489]
[1735700722617,0.29804,3363.0,3362.9,6.23586507]
[1735700723219,0.29804,3363.0,3362.9,6.53391507]
[1735700723415,3.2078,3364.0,3363.4,0.29801]
[1735700723620,0.8791,3363.9,3363.5,0.9127]
[1735700723822,0.29797,3363.8,3363.6,0.29798]
[1735700724322,0.8791,3363.9,3363.5,0.9127]
[1735700724526,0.4489,3364.3,3363.7,3.2078]
[1735700724714,0.74683,3364.3,3364.1,0.29794]
[1735700724914,0.74683,3364.3,3364.2,0.4285]
[1735700725319,0.4489,3364.3,3363.9,0.29796]
[1735700725526,0.29795,3364.1,3363.9,0.72646]
[1735700725713,0.4489,3364.3,3363.9,0.4285]
[1735700725918,0.74683,3364.3,3364.1,0.29794]
[1735700726116,0.74683,3364.3,3364.2,0.4561]
[1735700729820,0.4294,3364.6,3364.2,0.4561]
[1735700730029,0.29792,3364.5,3364.2,0.75403]
[1735700730244,0.29792,3364.4,3364.2,0.75403]
[1735700732128,0.29793,3364.3,3364.2,0.4561]
[1735700733318,2.24826488,3364.5,3364.1,3.2078]
[1735700733523,0.75744,3364.2,3364.1,3.2078]
[1735700741634,0.29796,3363.9,3363.7,0.73177]
[1735700742135,0.4595,3364.2,3363.7,0.4338]
[1735700742326,1.177,3364.3,3363.8,0.29797]
[1735700742327,0.29793,3364.3,3363.8,0.29797]
[1735700742533,0.29794,3364.1,3364.0,3.2078]
[1735700743429,0.4398,3364.5,3364.0,3.2078]
[1735700743638,0.29792,3364.4,3364.2,0.29793]
[1735700743868,0.29792,3364.4,3364.3,0.4377]
[1735700744937,0.4639,3364.7,3364.3,0.4377]
[1735700745234,0.29791,3364.5,3364.3,0.73562]
[1735700748947,0.8843,3364.7,3364.3,0.73562]
[1735700749149,0.29792,3364.5,3364.3,0.73562]
[1735700751746,0.29792,3364.4,3364.3,0.4377]
[1735700761062,0.8843,3364.7,3364.1,0.72744]
[1735700761063,0.8843,3364.7,3364.1,0.4295]
[1735700761269,0.29793,3364.2,3364.1,0.4295]
[1735700761756,0.73423,3364.2,3364.1,0.4295]
[1735700762753,0.73423,3364.2,3364.1,0.72744]
[1735700762956,0.29793,3364.2,3364.1,0.72744]
[1735700763463,0.29793,3364.2,3364.1,0.4295]
[1735700763865,0.74323,3364.2,3364.1,0.4295]
[1735700764368,0.29798,3363.6,3363.5,3.2078]
[1735700764568,0.29798,3363.6,3363.5,3.6414]
[1735700765066,0.29798,3363.6,3363.5,3.93939]
[1735700765366,0.29798,3363.6,3363.5,3.6414]
[1735700765567,0.29798,3363.6,3363.5,3.93939]
[1735700765866,0.29797,3363.8,3363.5,3.6414]
[1735700766068,0.29796,3363.9,3363.8,0.29796]
[1735700767168,0.29797,3363.8,3363.7,0.29797]
[1735700768363,0.8847,3364.1,3363.7,4.96147994]
[1735700768569,0.29797,3363.8,3363.7,4.96147994]
[1735700769476,0.29794,3364.1,3364.0,0.29795]
[1735700769867,0.88,3364.4,3363.9,3.2078]
[1735700770165,0.88,3364.4,3364.0,0.4598]
[1735700770366,0.4563,3364.6,3364.4,0.29791]
[1735700770367,0.29791,3364.5,3364.4,0.29791]
[1735700770563,0.29793,3364.3,3364.2,0.29793]
[1735700771674,0.29793,3364.3,3364.2,13.4926571]
[1735700774290,0.29792,3364.4,3364.3,0.29792]
[1735700774464,0.29792,3364.3,3364.2,13.4926571]
[1735700774768,0.29792,3364.3,3364.2,13.1947271]
[1735700775076,0.29792,3364.3,3364.2,6.99896489]
[1735700775874,3.50572,3364.3,3364.2,6.99896489]
[1735700776069,0.29798,3363.7,3363.6,0.29798]
[1735700778074,0.29798,3363.7,3363.5,3.2078]
[1735700778380,0.29798,3363.7,3363.5,3.50579]
[1735700778579,0.29798,3363.6,3363.5,3.50579]
[1735700782983,0.29798,3363.7,3363.6,0.29798]
[1735700783583,0.29798,3363.7,3363.6,0.74508]
[1735700783778,0.4422,3364.0,3363.6,6.64163753]
[1735700783984,0.29797,3363.8,3363.7,0.29797]
[1735700784581,0.29797,3363.8,3363.7,13.49147242]
[1735700786079,0.29797,3363.8,3363.7,6.49250753]
[1735700788491,0.29797,3363.8,3363.7,13.46634746]
[1735700790187,0.29797,3363.8,3363.7,13.16837746]
[1735700791692,0.29798,3363.6,3363.5,4.65191575]
[1735700792882,0.29801,3363.3,3363.2,0.4527]
[1735700793988,0.29801,3363.3,3363.2,0.75072]
[1735700801097,0.29801,3363.3,3363.2,0.4527]
[1735700801396,0.29801,3363.3,3363.2,0.75072]
[1735700808197,0.29801,3363.3,3363.2,1.81455707]
[1735700809002,0.29801,3363.4,3363.3,0.29801]
[1735700811203,0.4654,3363.7,3363.2,6.59245282]
[1735700811392,0.298,3363.5,3363.4,1.36183707]
[1735700811804,0.298,3363.5,3363.4,1.06383707]
[1735700812000,0.29801,3363.4,3363.3,0.29801]
[1735700813306,0.29801,3363.4,3363.3,4.94992575]
[1735700815706,0.29801,3363.4,3363.3,0.29801]
[1735700816793,0.29801,3363.4,3363.3,4.94992575]
[1735700820404,0.29801,3363.4,3363.3,6.49483109]
[1735700821704,0.29801,3363.4,3363.3,0.29801]
[1735700825211,0.4654,3363.7,3363.2,1.94053707]
[1735700825502,0.298,3363.5,3363.4,1.36183707]
[1735700826296,0.298,3363.6,3363.5,0.29799]
[1735700826501,0.298,3363.6,3363.5,0.4567]
[1735700827801,0.298,3363.5,3363.4,3.2078]
[1735700828006,0.298,3363.5,3363.4,12.50406812]
[1735700829003,0.298,3363.5,3363.4,9.39284296]
[1735700829410,0.4654,3363.7,3363.4,9.39284296]
[1735700829705,0.4654,3363.7,3363.4,16.37673089]
[1735700829907,0.298,3363.5,3363.4,16.37673089]
[1735700830601,0.298,3363.5,3363.4,9.39284296]
[1735700830913,0.298,3363.5,3363.4,9.69085296]
[1735700831325,0.298,3363.5,3363.4,9.39284296]
[1735700831605,1.36183707,3363.5,3363.4,13.16893089]
[1735700832798,0.29802,3363.2,3363.1,4.65888931]
[1735700833900,0.29802,3363.2,3363.1,6.18059564]
[1735700834902,0.29802,3363.2,3363.0,10.19168793]
[1735700835110,0.71783,3363.1,3363.0,10.19168793]
[1735700835809,0.71783,3363.1,3363.0,3.2078]
[1735700836410,0.4198,3363.1,3362.8,1.80489707]
[1735700836606,0.29805,3362.9,3362.8,1.50683707]
[1735700838715,0.4398,3363.0,3362.7,0.4544]
[1735700838920,0.29804,3362.8,3362.7,0.4544]
[1735700839214,0.29805,3362.7,3362.6,7.86680445]
[1735700839614,0.29805,3362.7,3362.6,3.2078]
[1735700840904,1.36188707,3362.7,3362.6,3.2078]
[1735700842114,2.53888707,3362.7,3362.6,3.2078]
[1735700842512,1.47505,3362.7,3362.6,3.2078]
[1735700843821,1.47505,3362.7,3362.6,7.86680445]
[1735700844910,0.29805,3362.7,3362.6,7.86680445]
[1735700845125,0.29805,3362.7,3362.6,8.16486445]
[1735700845317,0.29805,3362.7,3362.6,8.62746445]
[1735700845715,0.29801,3363.2,3363.1,0.29801]
[1735700845914,0.29796,3363.8,3363.6,0.29797]
[1735700846119,11.68137056,3364.0,3363.7,1.06383707]
[1735700846320,11.68137056,3364.0,3363.9,0.29794]
[1735700846827,7.02914787,3364.8,3363.9,2.24628426]
[1735700847017,0.29789,3364.5,3364.4,3.2078]
[1735700848115,8.17695939,3365.0,3364.4,5.45408426]
[1735700848316,0.4562,3365.8,3364.9,3.2078]
[1735700848515,0.4562,3365.8,3364.4,9.64301701]
[1735700848516,8.66194787,3366.0,3365.3,3.2078]
[1735700848715,0.29779,3365.7,3365.3,3.50561]
[1735700849317,8.66194787,3366.0,3365.3,3.2078]
[1735700849530,0.2978,3365.6,3365.3,3.2078]
[1735700849718,0.2978,3365.6,3365.4,4.64301701]
[1735700850126,1.6328,3366.0,3365.4,4.64301701]
[1735700850619,0.29779,3365.6,3365.4,4.64301701]
[1735700850918,1.6328,3366.0,3365.4,4.64301701]
[1735700851225,0.29778,3365.8,3365.5,0.2978]
[1735700851420,0.29778,3365.8,3365.4,0.29781]
[1735700851922,0.2978,3365.6,3365.3,3.2078]
[1735700852124,0.2978,3365.6,3365.3,3.50562]
[1735700852521,0.2978,3365.6,3365.3,3.2078]
[1735700852926,0.29779,3365.7,3365.3,3.50561]
[1735700853513,3.2078,3366.1,3365.3,3.2078]
[1735700853719,0.29782,3365.3,3365.1,0.4635]
[1735700853919,2.24628426,3365.8,3365.1,0.4635]
[1735700854121,0.29781,3365.4,3365.1,0.76134]
[1735700854324,3.2078,3366.1,3365.1,0.4635]
[1735700854325,5.45408426,3366.1,3365.1,0.4635]
[1735700854525,0.29779,3365.7,3365.4,0.29781]
[1735700854721,5.45408426,3366.1,3365.1,0.4635]
[1735700855026,0.29779,3365.6,3365.2,0.29783]
[1735700855428,0.2978,3365.6,3365.2,0.29783]
[1735700855933,5.45408426,3366.1,3365.2,0.29783]
[1735700856120,0.2978,3365.6,3365.3,0.29782]
[1735700856320,0.2978,3365.6,3365.1,0.4635]
[1735700856521,5.45408426,3366.1,3365.2,0.29782]
[1735700856828,0.29781,3365.5,3365.2,0.29783]
[1735700857929,0.29781,3365.5,3365.1,0.76133]